bitfinex/quotes_ETHUSD_20241120
["timestamp","ask_amount","ask_price","bid_price","bid_amount"]
[1732096573868,3.75831,3116.9,3116.3,2.88803]
[1732096574172,3.75831,3116.9,3116.4,2.88794]
[1732096574375,3.75831,3116.9,3116.3,2.88803]
[1732096574777,0.55,3116.6,3116.2,0.7748]
[1732096574981,0.55,3116.6,3116.2,3.66291]
[1732096575789,0.3682,3117.0,3116.2,3.66291]
[1732096575790,0.55,3116.8,3116.2,0.7748]
[1732096576076,6.96673,3116.9,3116.3,2.88797]
[1732096576247,0.55,3116.7,3116.2,3.6629]
[1732096576857,0.55,3116.6,3116.1,2.88814]
[1732096577179,0.55,3116.6,3116.0,2.88831]
[1732096577357,0.55,3116.6,3115.9,3.65443]
[1732096577558,3.75863,3116.6,3116.0,2.88823]
[1732096578371,0.55,3116.6,3116.0,2.88823]
[1732096578572,0.55,3116.6,3116.1,2.88822]
[1732096578775,0.55,3116.6,3116.0,2.88823]
[1732096579372,3.75865,3116.6,3116.0,2.88823]
[1732096579887,0.55,3116.8,3116.3,2.88803]
[1732096580093,0.55,3116.8,3116.2,2.88812]
[1732096580298,0.55,3116.8,3115.9,0.7661]
[1732096580464,0.55,3117.0,3116.5,0.7873]
[1732096580671,0.55,3117.1,3116.6,2.88774]
[1732096580999,0.55,3117.1,3116.6,5.83705248]
[1732096581154,0.55,3117.1,3116.6,2.94931248]
[1732096581356,3.20774,3117.5,3116.9,2.88745]
[1732096581787,3.20796,3117.3,3117.0,0.06146646]
[1732096582176,3.20796,3117.3,3116.7,3.67494]
[1732096582358,3.20796,3117.3,3117.1,0.06142497]
[1732096582560,3.20796,3117.3,3116.7,3.67489]
[1732096582872,3.20801,3117.2,3116.8,0.06154947]
[1732096583067,3.20817,3117.1,3116.8,0.06154947]
[1732096583271,3.20831,3116.9,3116.8,0.06154947]
[1732096583472,3.57637,3117.1,3116.3,0.8104]
[1732096583759,0.55,3117.2,3116.8,0.06154947]
[1732096583960,0.55,3117.3,3116.5,2.88777]
[1732096584172,0.55,3117.0,3116.9,0.06150796]
[1732096584474,3.75821,3117.0,3116.9,0.06150796]
[1732096584681,3.75821,3117.0,3116.5,2.88777]
[1732096584901,3.75821,3117.0,3116.9,0.06150796]
[1732096585106,0.55,3117.1,3116.9,0.23963106]
[1732096585279,0.55,3117.1,3117.0,0.23963106]
[1732096585462,0.55,3117.1,3117.0,0.30091698]
[1732096586023,3.75811,3117.1,3117.0,0.30091698]
[1732096586229,0.55,3117.1,3117.0,0.30091698]
[1732096587797,4.133912,3117.1,3117.0,0.30091698]
[1732096588692,4.133912,3117.1,3117.0,0.30097665]
[1732096590708,3.57607,3117.4,3117.0,0.30097665]
[1732096591016,3.20763,3117.6,3117.1,0.23969073]
[1732096591221,3.20763,3117.6,3117.2,0.23969073]
[1732096591380,3.20775,3117.5,3117.2,0.23969073]
[1732096591582,0.3682,3117.7,3117.3,0.30085218]
[1732096591883,0.3682,3118.0,3117.4,0.23969073]
[1732096592107,3.20756,3117.7,3117.4,0.30108913]
[1732096592304,3.20728,3117.9,3117.4,0.30108913]
[1732096592482,0.67826,3117.9,3117.5,0.23969073]
[1732096592678,0.67826,3117.9,3117.6,0.23969073]
[1732096592982,3.57542,3118.0,3117.6,0.23969073]
[1732096592983,3.57542,3118.0,3117.7,0.23969073]
[1732096593190,3.57542,3118.0,3117.8,0.23969073]
[1732096593398,0.3682,3118.0,3117.9,0.23969073]
[1732096593597,3.57538,3118.0,3117.9,0.23969073]
[1732096593916,4.12538,3118.0,3117.9,0.23969073]
[1732096594240,0.55,3117.9,3117.4,0.7879]
[1732096594547,0.55,3117.7,3117.5,0.06135691]
[1732096594727,0.55,3117.7,3117.4,0.7879]
[1732096594901,0.55,3117.7,3117.6,0.06131543]
[1732096595302,0.55,3117.7,3117.4,0.7879]
[1732096595545,0.55,3117.7,3117.6,0.06131543]
[1732096595711,0.55,3117.7,3117.4,0.7879]
[1732096595914,0.55,3117.7,3117.6,0.06130152]
[1732096596115,0.55,3117.7,3117.4,0.7879]
[1732096596309,0.55,3117.7,3117.6,0.06128761]
[1732096596829,0.55,3117.7,3117.4,0.7879]
[1732096597186,0.55,3117.7,3117.5,0.06134301]
[1732096597739,0.55,3117.7,3117.6,0.06131543]
[1732096598118,0.55,3117.7,3117.4,0.7879]
[1732096598341,0.55,3117.8,3117.6,0.06131543]
[1732096598528,1.2695248,3117.8,3117.4,0.7879]
[1732096598737,1.2695248,3117.8,3117.7,0.06127394]
[1732096598922,1.2695248,3117.8,3117.4,0.7879]
[1732096599125,1.2695248,3117.8,3117.5,0.06135691]
[1732096599336,1.2695248,3117.8,3117.4,0.7879]
[1732096599649,1.2695248,3117.8,3117.5,0.06135691]
[1732096599945,1.2695248,3117.8,3117.4,0.7879]
[1732096600114,1.2695248,3117.8,3117.5,0.06135691]
[1732096600314,1.2695248,3117.8,3117.4,0.7879]
[1732096600514,1.2695248,3117.8,3117.5,0.06135691]
[1732096600745,1.2695248,3117.8,3117.3,2.8871]
[1732096600947,1.2695248,3117.8,3117.4,0.0613984]
[1732096601152,1.2695248,3117.8,3117.3,2.8871]
[1732096601471,0.55,3117.8,3117.4,0.0613984]
[1732096601653,0.55,3117.8,3117.4,2.9483984]
[1732096601821,0.55,3117.9,3117.4,2.887]
[1732096602021,0.55,3117.9,3117.5,2.94827691]
[1732096603064,0.55,3117.9,3117.5,0.06135691]
[1732096603570,3.7573,3117.9,3117.3,2.8871]
[1732096604038,0.55,3117.9,3117.4,2.9483991]
[1732096604241,0.55,3117.9,3117.4,0.0613991]
[1732096604554,0.55,3117.9,3117.3,2.8871]
[1732096604752,0.55,3117.9,3117.5,0.06137127]
[1732096604955,0.55,3117.9,3117.3,2.8871]
[1732096605160,0.55,3117.9,3117.4,0.06141276]
[1732096605355,0.55,3117.9,3117.3,2.8871]
[1732096605529,0.55,3117.9,3117.4,0.06141252]
[1732096605730,3.7573,3117.9,3117.3,2.8871]
[1732096606038,3.20739,3117.8,3117.4,0.0613845]
[1732096606253,3.57589,3117.5,3117.4,0.0613845]
[1732096606553,3.75821,3117.0,3116.4,2.88788]
[1732096606761,3.75821,3117.0,3116.5,0.05741518]
[1732096607126,0.55,3117.0,3116.5,0.05741518]
[1732096607439,3.75822,3117.0,3116.5,0.05741518]
[1732096607638,3.75824,3117.0,3116.5,0.05741518]
[1732096608050,3.20831,3116.9,3116.5,0.05741518]
[1732096608254,0.55,3116.8,3116.5,0.05741518]
[1732096608576,0.55,3116.8,3116.6,0.05729714]
[1732096608941,0.55,3116.8,3116.3,2.88802]
[1732096609144,0.55,3116.8,3116.4,0.05738016]
[1732096609665,0.55,3116.8,3116.2,0.42161801]
[1732096609860,0.55,3116.8,3116.5,0.05542598]
[1732096610171,0.55,3116.8,3116.6,0.05525926]
[1732096610341,0.55,3116.8,3116.3,2.88802]
[1732096610541,0.55,3116.8,3116.4,0.05531444]
[1732096610777,0.55,3116.8,3116.5,0.38325639]
[1732096610960,0.55,3116.8,3115.7,2.88858]
[1732096610961,3.20894,3116.3,3115.7,2.88858]
[1732096611274,3.20894,3116.3,3115.5,2.88878]
[1732096611275,3.75904,3116.2,3115.5,2.88872]
[1732096611580,0.55,3116.4,3115.7,2.88856]
[1732096611733,0.55,3116.2,3115.5,2.88872]
[1732096611940,3.209,3116.3,3115.5,2.88872]
[1732096611941,0.55,3116.0,3115.6,2.88868]
[1732096612780,0.55,3116.2,3115.7,0.8238]
[1732096613978,0.55,3116.2,3115.7,3.71239]
[1732096614575,0.55,3116.4,3115.7,3.71239]
[1732096614784,3.75884,3116.4,3115.7,3.71239]
[1732096615272,3.209,3116.3,3115.7,0.8238]
[1732096615474,0.55,3116.2,3115.7,0.8238]
[1732096615686,3.2092,3116.1,3115.5,0.7608]
[1732096616003,0.55,3116.0,3115.5,3.64957]
[1732096617200,0.55,3116.0,3115.6,0.05390569]
[1732096617335,3.75925,3116.0,3115.6,0.05390569]
[1732096617542,0.55,3115.8,3115.6,0.05390569]
[1732096617735,0.55,3115.8,3115.2,2.88902]
[1732096617976,3.75946,3115.8,3115.3,0.05407895]
[1732096618274,0.55,3115.8,3115.2,2.88903]
[1732096618464,0.55,3115.8,3115.4,0.05402335]
[1732096618778,3.75945,3115.8,3115.2,2.88903]
[1732096619090,3.75945,3115.8,3115.3,0.05412744]
[1732096619278,0.55,3116.1,3115.6,0.7715]
[1732096619577,0.55,3116.2,3115.7,0.05384289]
[1732096620377,0.55,3116.2,3115.7,2.94240289]
[1732096620978,0.55,3116.3,3115.7,2.94240289]
[1732096621177,0.55,3116.3,3115.7,0.05384289]
[1732096621352,0.55,3116.3,3115.7,2.94237289]
[1732096621550,0.55,3116.3,3115.7,0.05384289]
[1732096621772,0.55,3116.3,3115.9,2.88833]
[1732096622082,0.55,3116.3,3116.0,0.05371158]
[1732096622442,0.55,3116.3,3115.8,2.88847]
[1732096622643,0.55,3116.3,3116.1,0.05368398]
[1732096623063,0.55,3116.3,3115.8,2.88847]
[1732096623265,0.55,3116.3,3116.2,0.05369814]
[1732096623493,0.55,3116.3,3115.8,2.88847]
[1732096623810,3.75899,3116.3,3115.8,2.88848]
[1732096624111,3.75899,3116.3,3115.9,0.05379487]
[1732096624414,0.55,3116.3,3115.8,2.8885]
[1732096624559,0.55,3116.3,3116.0,0.0537047]
[1732096624910,0.55,3116.6,3116.0,2.88825]
[1732096625206,0.55,3116.6,3116.1,0.05399729]
[1732096625364,3.75865,3116.6,3116.1,0.05399729]
[1732096626616,0.55,3116.6,3116.1,2.94220729]
[1732096626763,0.7243,3117.0,3116.5,2.88785]
[1732096626959,0.7243,3117.0,3116.6,0.05375525]
[1732096627506,0.7243,3117.3,3116.6,0.05375525]
[1732096627813,3.20752,3117.7,3117.1,2.88728]
[1732096627814,0.7243,3117.5,3117.1,2.88728]
[1732096628108,0.7243,3117.5,3117.0,3.69413]
[1732096628267,0.7243,3117.5,3117.2,0.05342285]
[1732096628467,0.7243,3117.5,3117.1,0.05345116]
[1732096628667,0.7243,3117.5,3117.0,3.69413]
[1732096628668,0.7243,3117.5,3117.3,0.05335426]
[1732096628867,0.7243,3117.5,3117.2,0.05339575]
[1732096629111,1.2743,3117.5,3117.4,0.05331277]
[1732096629319,0.55,3117.4,3117.3,0.05335426]
[1732096629605,0.55,3117.4,3117.0,3.69413]
[1732096631622,6.20695,3118.3,3117.0,3.69413]
[1732096631623,0.7243,3117.8,3117.0,0.8068]
[1732096631803,0.7243,3118.0,3117.5,2.88687]
[1732096632111,0.7243,3118.0,3117.4,2.88697]
[1732096632112,0.7243,3118.0,3117.6,2.88681]
[1732096633319,0.55,3117.9,3117.6,2.88681]
[1732096633917,0.55,3117.9,3117.8,2.88665]
[1732096634099,0.55,3118.1,3117.8,2.88665]
[1732096634314,0.7243,3118.2,3117.8,2.88665]
[1732096634492,0.33403195,3118.4,3118.0,2.88645]
[1732096634688,0.76053015,3118.4,3118.0,2.88645]
[1732096634878,0.4264982,3118.4,3118.1,3.70174]
[1732096635216,0.7243,3118.7,3118.1,3.70174]
[1732096636403,0.55,3118.6,3118.1,3.70174]
[1732096636807,3.61005167,3118.5,3117.4,0.8009]
[1732096637122,0.55,3117.7,3117.2,0.8009]
[1732096637304,3.75753,3117.7,3117.1,2.88726]
[1732096638024,0.7243,3117.9,3117.2,2.93854554]
[1732096638025,0.55,3117.8,3117.2,2.93854554]
[1732096638187,0.55,3117.5,3117.2,2.93854554]
[1732096638377,3.7574,3117.8,3117.2,2.93854554]
[1732096638576,0.55,3117.8,3117.2,2.93854554]
[1732096638786,3.75739,3117.8,3117.2,2.93854554]
[1732096638985,0.55,3117.8,3117.3,2.8871]
[1732096639188,0.55,3117.8,3117.0,0.7835]
[1732096639189,0.55,3117.8,3117.4,2.93844058]
[1732096639392,0.55,3117.8,3117.5,2.8869]
[1732096639700,3.75708,3118.1,3117.6,0.05138445]
[1732096639899,0.55,3117.9,3117.6,0.05138445]
[1732096640118,3.75749,3117.7,3117.6,0.05138445]
[1732096640432,0.55,3117.6,3117.0,3.67083]
[1732096640618,0.55,3117.6,3117.1,2.88723]
[1732096641374,0.55,3117.8,3117.0,0.7835]
[1732096641694,1.2743,3117.1,3116.4,0.7835]
[1732096641888,0.55,3116.9,3116.4,0.7835]
[1732096642128,1.2743,3117.1,3116.4,0.7835]
[1732096642776,1.2743,3117.1,3116.6,2.88769]
[1732096643121,0.55,3117.3,3116.9,2.88744]
[1732096643273,0.55,3117.3,3116.7,2.88764]
[1732096643476,0.55,3117.3,3116.8,2.88756]
[1732096643701,4.526882,3117.3,3116.5,2.88782]
[1732096643918,4.526882,3117.3,3115.9,2.8884]
[1732096643919,0.55,3117.0,3116.2,0.7835]
[1732096644126,3.75827,3117.0,3116.4,2.88794]
[1732096644418,3.75827,3117.0,3116.4,2.88787]
[1732096645493,3.75827,3117.0,3116.4,5.77573]
[1732096645717,4.454897,3117.0,3116.5,2.88784]
[1732096646045,3.75819,3117.1,3116.4,2.88786]
[1732096646270,0.55,3116.9,3116.4,2.88786]
[1732096646924,0.55,3117.0,3116.6,2.88775]
[1732096647731,0.55,3117.3,3116.7,2.88763]
[1732096647934,0.55,3117.3,3116.6,2.88775]
[1732096648247,4.206172,3117.3,3116.7,2.88766]
[1732096648402,0.55,3117.3,3116.7,2.88766]
[1732096648747,0.55,3117.3,3116.8,2.88756]
[1732096649042,0.55,3117.3,3116.7,3.71876]
[1732096649346,3.20741,3117.8,3117.1,2.88723]
[1732096649651,0.7243,3118.3,3117.9,2.88655]
[1732096650553,0.7243,3118.3,3118.0,2.88644]
[1732096650762,0.7243,3118.3,3117.4,3.71808]
[1732096650763,0.7243,3118.3,3117.7,2.8867]
[1732096650910,0.7243,3118.3,3117.9,2.88648]
[1732096651098,0.7243,3118.3,3117.7,2.8867]
[1732096651298,0.55,3118.2,3117.8,2.88664]
[1732096652938,0.55,3118.2,3117.9,0.04957769]
[1732096653342,3.75698,3118.2,3117.9,0.04957769]
[1732096653657,0.55,3118.2,3118.0,0.04953621]
[1732096653801,0.55,3118.3,3118.0,0.04953621]
[1732096654002,0.55,3118.3,3117.9,2.88655]
[1732096654003,0.55,3118.5,3117.6,2.88575167]
[1732096654241,0.55,3118.5,3118.1,2.56559]
[1732096654753,0.55,3118.5,3118.2,2.61475121]
[1732096654904,0.55,3118.5,3118.3,0.23886947]
[1732096655244,0.55,3118.5,3118.4,0.28801776]
[1732096655739,0.55,3118.7,3118.4,0.28801776]
[1732096655899,0.55,3118.7,3118.5,0.23886947]
[1732096655900,0.870636,3118.7,3118.5,0.23886947]
[1732096656100,3.93056,3118.9,3118.6,0.23886947]
[1732096656101,0.55,3118.8,3118.6,0.23886947]
[1732096656342,0.55,3118.8,3118.6,0.04906538]
[1732096656620,0.55,3118.8,3118.7,0.23886947]
[1732096656816,0.55,3118.8,3118.7,0.2878934]
[1732096659635,0.55,3118.8,3118.7,0.28780123]
[1732096663852,3.75636,3118.8,3118.7,0.04902393]
[1732096664255,3.75636,3118.8,3118.7,0.2386384]
[1732096664459,3.75636,3118.8,3118.7,0.28760683]
[1732096664631,3.75636,3118.8,3118.7,0.04896843]
[1732096664832,3.75636,3118.8,3118.1,2.56561]
[1732096665161,3.75636,3118.8,3118.2,2.85332701]
[1732096665358,3.75636,3118.8,3118.3,0.23862131]
[1732096665527,1.25060312,3118.8,3118.4,0.28771409]
[1732096665855,0.55,3118.2,3117.7,0.7889]
[1732096666026,0.55,3118.2,3117.8,0.23864093]
[1732096666230,0.55,3118.2,3117.9,0.28798264]
[1732096666482,0.55,3118.0,3117.9,0.04934171]
[1732096666630,0.55,3118.0,3117.9,0.28800555]
[1732096666837,0.55,3118.2,3117.9,0.28800555]
[1732096667033,0.870691,3118.2,3117.9,0.04934171]
[1732096667345,0.870691,3118.2,3118.0,0.23865455]
[1732096667679,0.55,3118.4,3118.1,0.23865455]
[1732096667968,0.55,3118.4,3118.2,0.23865455]
[1732096668188,0.998101,3118.3,3118.2,0.04907828]
[1732096668346,4.204971,3118.3,3117.7,2.56598]
[1732096668559,0.55,3118.2,3117.8,0.28793715]
[1732096668756,0.55,3118.2,3117.9,0.2386724]
[1732096668967,0.55,3118.2,3118.0,0.28785422]
[1732096669165,0.9704911,3118.2,3118.1,0.2386724]
[1732096669377,0.55,3118.2,3118.1,0.04916816]
[1732096669539,0.55,3118.4,3118.1,0.2878392]
[1732096669746,0.55,3118.4,3118.1,2.80428104]
[1732096669944,0.55,3118.6,3118.2,0.23867104]
[1732096670185,0.55,3118.6,3118.2,0.28792289]
[1732096670480,3.75659,3118.6,3118.3,0.23867104]
[1732096670679,3.75659,3118.6,3118.2,0.04925185]
[1732096670680,0.55,3118.4,3118.2,0.04925185]
[1732096670979,0.55,3118.4,3118.3,0.23867565]
[1732096672177,0.55,3118.6,3118.3,0.23867565]
[1732096672379,3.75657,3118.6,3118.1,0.38187686]
[1732096672672,1.318742,3118.6,3118.1,5.51312686]
[1732096672978,0.55,3118.6,3118.2,2.94738686]
[1732096673183,0.55,3118.6,3118.3,0.38187686]
[1732096674486,0.55,3118.6,3118.2,2.56556]
[1732096674639,0.55,3118.6,3118.3,0.38187686]
[1732096675046,0.55,3118.6,3118.2,0.38187686]
[1732096676188,0.55,3118.6,3118.3,0.38187686]
[1732096676369,0.55,3118.6,3118.4,0.38187686]
[1732096676596,0.55,3118.6,3118.2,2.56557]
[1732096676774,0.55,3118.6,3118.3,0.38187686]
[1732096677175,0.55,3118.6,3118.0,3.36247]
[1732096677497,0.55,3118.6,3118.1,0.38264253]
[1732096677673,3.75657,3118.6,3118.2,0.38264253]
[1732096677874,3.75657,3118.6,3118.3,0.38264253]
[1732096678072,3.75657,3118.6,3118.0,3.36247]
[1732096678073,0.55,3118.6,3118.4,0.38264253]
[1732096678289,0.55,3118.6,3118.5,0.38264253]
[1732096679199,0.7243,3119.0,3118.6,2.56523]
[1732096679377,0.7243,3119.0,3118.5,0.38264253]
[1732096679581,0.7243,3119.0,3118.6,0.38264253]
[1732096679762,0.7243,3119.0,3118.7,0.43181914]
[1732096679963,0.7243,3119.0,3118.8,0.38264253]
[1732096680163,1.11734,3119.0,3118.9,0.43173623]
[1732096680389,1.2743,3119.0,3118.9,0.38264253]
[1732096680615,1.2743,3119.0,3118.9,0.43173623]
[1732096680903,1.2743,3119.0,3118.9,0.43258884]
[1732096681602,4.48045,3119.0,3118.9,0.43258884]
[1732096681959,4.48045,3119.0,3118.9,0.38349514]
[1732096682426,4.48045,3119.0,3118.9,0.43258884]
[1732096682581,5.249097,3119.0,3118.9,0.43258884]
[1732096682775,1.2743,3118.9,3118.2,0.38349514]
[1732096682990,0.55,3118.6,3118.3,0.43283759]
[1732096683318,4.48107,3118.4,3118.3,0.04934245]
[1732096683714,4.48107,3118.4,3118.3,0.38355646]
[1732096684678,4.48107,3118.4,3117.2,0.8246]
[1732096684679,3.20751,3117.7,3117.2,0.8246]
[1732096685008,3.20763,3117.6,3117.3,0.04974332]
[1732096685208,3.20763,3117.6,3117.0,2.56655]
[1732096685410,3.20778,3117.5,3116.9,0.8246]
[1732096685572,3.20778,3117.5,3116.9,3.39124]
[1732096685783,3.20778,3117.5,3117.0,0.04812493]
[1732096685784,3.20769,3117.5,3117.0,0.04812493]
[1732096685991,3.20769,3117.5,3117.0,2.61468493]
[1732096686185,3.20769,3117.5,3117.0,0.04812493]
[1732096686509,3.84921,3117.5,3117.0,0.04812493]
[1732096686715,3.2077,3117.5,3117.0,0.04812493]
[1732096686880,0.55,3117.4,3117.0,0.04812493]
[1732096687079,0.55,3117.2,3117.0,0.04812493]
[1732096687497,0.55,3117.2,3116.7,2.56677]
[1732096687694,0.55,3117.2,3117.1,0.04822916]
[1732096688008,3.758,3117.2,3117.1,0.04822916]
[1732096688190,0.55,3117.2,3117.1,0.04822916]
[1732096688511,0.55,3117.2,3116.6,3.37969]
[1732096688707,0.55,3117.2,3117.1,0.04822916]
[1732096689019,3.7576,3117.6,3117.1,0.04822916]
[1732096689171,0.55,3117.3,3116.8,2.56672]
[1732096689370,0.55,3117.3,3116.9,0.04826035]
[1732096689682,0.55,3117.3,3117.0,0.7857]
[1732096690086,0.55,3117.3,3117.1,0.04817735]
[1732096690415,3.20788,3117.4,3117.1,0.04817735]
[1732096690601,0.55,3117.3,3117.1,0.04817735]
[1732096692472,3.75792,3117.3,3117.1,0.04817735]
[1732096694521,0.55,3117.2,3116.8,3.25671186]
[1732096694719,0.55,3117.4,3116.9,0.3825469]
[1732096695075,0.55,3117.4,3117.0,0.04821885]
[1732096695300,0.55,3117.5,3117.0,3.25640885]
[1732096695906,3.75771,3117.5,3117.1,0.7914]
[1732096696173,3.75771,3117.5,3117.2,0.04815033]
[1732096696574,0.55,3117.6,3117.2,0.04815033]
[1732096696825,3.0,3118.4,3117.2,0.04815033]
[1732096696826,0.7243,3118.1,3117.6,3.20758]
[1732096696988,0.7243,3118.1,3117.4,3.20771]
[1732096696989,3.93139,3118.1,3117.4,3.20771]
[1732096697192,3.93139,3118.1,3117.5,3.20763]
[1732096697502,3.20699,3118.2,3117.6,3.25546736]
[1732096698014,11.97696,3118.3,3117.6,3.25546736]
[1732096698186,3.2071,3118.1,3117.6,3.25546736]
[1732096698392,0.55,3118.0,3117.6,3.25546736]
[1732096699120,0.55,3118.0,3117.6,0.04788736]
[1732096699424,0.55,3118.0,3117.5,3.20768]
[1732096699824,3.75749,3117.7,3117.6,0.04803935]
[1732096700126,3.75749,3117.7,3117.0,0.7796]
[1732096700127,3.75767,3117.6,3117.0,0.7796]
[1732096700426,4.526407,3117.7,3117.0,0.7796]
[1732096700427,0.55,3117.4,3117.0,0.7796]
[1732096700591,0.55,3117.4,3117.1,0.04824682]
[1732096705186,0.55,3117.6,3117.1,3.25628682]
[1732096705390,0.55,3117.6,3117.1,0.04824682]
[1732096705591,3.75742,3117.8,3117.2,3.20793]
[1732096705790,0.55,3117.8,3117.3,0.04816383]
[1732096706013,0.55,3117.8,3117.2,3.20793]
[1732096706231,3.75745,3117.8,3117.3,0.04816383]
[1732096706543,3.75745,3117.8,3117.2,3.20793]
[1732096706757,0.55,3117.6,3117.4,0.04809493]
[1732096706903,3.7578,3117.4,3117.3,0.04810861]
[1732096707102,0.55,3117.2,3116.7,0.8256]
[1732096708145,3.20801,3117.2,3116.7,0.8256]
[1732096708302,0.55,3117.1,3116.7,0.8256]
[1732096709545,0.55,3117.3,3116.8,3.20834]
[1732096710018,0.55,3117.3,3116.9,3.20828]
[1732096710347,0.55,3117.3,3116.8,3.20833]
[1732096710640,3.2078,3117.4,3117.0,3.20814]
[1732096710641,0.55,3117.4,3117.0,3.20814]
[1732096710805,0.55,3117.6,3117.0,3.20813]
[1732096711002,3.75762,3117.6,3117.0,3.20813]
[1732096711553,3.75762,3117.6,3117.1,3.20809]
[1732096711755,3.75762,3117.6,3117.2,0.8241]
[1732096712052,0.55,3117.7,3117.2,4.03209]
[1732096712414,0.55,3117.8,3117.3,3.20781]
[1732096712652,3.75739,3117.8,3117.4,0.04779701]
[1732096712810,3.75739,3117.8,3117.3,3.20789]
[1732096713014,3.75739,3117.8,3117.4,0.04779701]
[1732096713257,3.75739,3117.8,3117.2,0.8241]
[1732096713465,3.75739,3117.8,3117.3,0.0478385]
[1732096713665,3.75739,3117.8,3117.2,4.03208]
[1732096713866,3.75739,3117.8,3117.3,0.04783156]
[1732096714071,3.75739,3117.8,3117.2,4.03208]
[1732096714362,3.75739,3117.8,3117.3,3.25571156]
[1732096714862,0.55,3117.4,3117.3,0.04783156]
[1732096715177,0.55,3117.6,3116.8,0.8241]
[1732096715461,0.55,3117.2,3116.7,3.20845]
[1732096715829,0.55,3117.2,3116.9,3.2083]
[1732096716258,0.55,3117.3,3116.9,3.2083]
[1732096716769,0.55,3117.3,3116.7,3.20845]
[1732096717072,0.55,3117.3,3116.7,6.41688]
[1732096717230,3.75792,3117.3,3116.7,3.20843]
[1732096718439,0.55,3117.1,3116.6,3.20861]
[1732096719083,0.55,3117.1,3116.5,4.03277]
[1732096719258,3.75818,3117.1,3116.5,4.03277]
[1732096719599,4.48268,3116.9,3116.3,3.20884]
[1732096720283,1.2743,3116.9,3116.4,3.20876]
[1732096720587,1.2743,3116.9,3116.6,3.20861]
[1732096720882,0.55,3117.0,3116.6,3.20861]
[1732096721073,0.55,3117.0,3116.6,3.20855]
[1732096721294,0.55,3117.2,3116.7,3.20846]
[1732096721587,0.55,3117.2,3116.8,3.20841]
[1732096721777,0.55,3117.2,3116.7,4.0315]
[1732096721977,3.20775,3117.5,3116.8,3.2084]
[1732096722283,3.20775,3117.5,3116.7,0.823]
[1732096722284,0.55,3117.4,3117.0,3.20814]
[1732096722471,0.55,3117.4,3117.1,3.2081]
[1732096722788,0.55,3117.6,3117.1,3.2081]
[1732096722986,3.20752,3117.7,3117.1,3.2081]
[1732096723593,3.20752,3117.7,3117.1,6.41615]
[1732096723895,3.20752,3117.7,3117.2,3.20798]
[1732096724049,3.93169,3117.8,3117.3,0.8311]
[1732096724796,0.55,3117.7,3117.3,0.8311]
[1732096725088,0.55,3117.7,3117.4,3.20779]
[1732096725397,0.55,3117.8,3117.4,3.20779]
[1732096725685,0.7243,3118.2,3117.4,3.20779]
[1732096725889,3.93136,3118.2,3117.6,3.20758]
[1732096726268,3.93136,3118.2,3117.7,0.04757598]
[1732096726448,3.20709,3118.1,3117.7,0.04757598]
[1732096726654,3.20731,3117.9,3117.3,4.03893]
[1732096726850,0.55,3117.8,3117.4,0.04770043]
[1732096727047,0.55,3117.8,3117.3,0.8311]
[1732096727356,0.55,3117.8,3117.4,0.04770043]
[1732096727786,3.75746,3117.8,3117.3,0.8311]
[1732096727995,0.55,3117.6,3117.5,0.04765894]
[1732096728197,0.55,3117.6,3117.0,7.22026]
[1732096728198,0.55,3117.6,3117.4,0.04770043]
[1732096728380,0.55,3117.8,3117.5,0.04765894]
[1732096728691,0.55,3117.8,3117.3,3.2079]
[1732096728893,0.998161,3117.8,3117.6,0.04761746]
[1732096729055,0.55,3117.6,3117.1,3.20806]
[1732096729252,0.55,3117.6,3117.2,0.0477316]
[1732096729253,3.75761,3117.6,3117.2,0.0477316]
[1732096729457,0.55,3117.6,3117.2,0.0477316]
[1732096729697,3.75766,3117.6,3117.2,0.0477316]
[1732096729999,0.55,3117.6,3117.2,0.0477316]
[1732096730199,0.55,3117.6,3117.0,4.01201]
[1732096730355,0.55,3117.6,3117.3,0.04769011]
[1732096730556,0.55,3117.6,3117.1,3.20807]
[1732096730755,0.55,3117.6,3117.4,0.04764863]
[1732096730989,0.55,3117.6,3117.1,3.20807]
[1732096731189,0.55,3117.6,3117.5,0.04760714]
[1732096731363,0.55,3117.6,3117.1,3.20807]
[1732096731564,3.75759,3117.6,3117.5,0.04760714]
[1732096731856,0.55,3117.6,3117.5,0.04760714]
[1732096732055,3.75759,3117.6,3117.0,0.8039]
[1732096732430,3.75759,3117.6,3117.1,0.0477731]
[1732096732701,3.75759,3117.6,3117.2,0.23974648]
[1732096732867,3.75759,3117.6,3117.3,0.23974648]
[1732096733200,3.75759,3117.6,3117.4,0.28739511]
[1732096733396,3.75759,3117.6,3117.4,0.04764863]
[1732096733761,3.75759,3117.6,3117.1,3.20809]
[1732096733961,3.75759,3117.6,3117.5,0.04760714]
[1732096734173,3.75759,3117.6,3117.1,3.20809]
[1732096734392,3.75759,3117.6,3117.5,0.0476087]
[1732096734593,3.75759,3117.6,3117.1,3.20809]
[1732096734792,3.75759,3117.6,3117.5,0.0476782]
[1732096735097,3.75759,3117.6,3117.5,0.0476365]
[1732096735303,0.55,3117.7,3117.5,0.0476365]
[1732096735471,0.9879781,3117.7,3117.1,3.20809]
[1732096735672,0.9879781,3117.7,3117.2,0.04774706]
[1732096735991,0.9879781,3117.7,3117.2,3.25573706]
[1732096736225,0.55,3117.7,3117.2,3.25573706]
[1732096737204,3.75751,3117.7,3117.2,3.25573706]